lending/lending_fUSD_20240622
["ID","MTS","AMOUNT","RATE_DAILY","PERIOD"]
[330126585,1719029502321,-500.0,0.00019726,2]
[330126586,1719029502332,-500.0,0.00019726,2]
[330126587,1719029502342,-504.65,0.00019726,2]
[330126588,1719029502352,-500.0,0.00019726,2]
[330126589,1719029502362,-1911.29,0.00019726,2]
[330126590,1719029502372,-500.0,0.00019726,2]
[330126591,1719029502382,-544.03,0.00019726,2]
[330126592,1719029502392,-500.0,0.00019726,2]
[330126593,1719029502402,-519.70363313,0.00019726,2]
[330126594,1719029502412,-797.85,0.00019726,2]
[330126595,1719029502422,-710.77,0.00019726,2]
[330126596,1719029502432,-500.0,0.00019726,2]
[330126597,1719029502442,-500.0,0.00019726,2]
[330126598,1719029502452,-500.0,0.00019726,2]
[330126599,1719029502463,-500.0,0.00019726,2]
[330126600,1719029502473,-1616.17,0.00019726,2]
[330126601,1719029502483,-500.0,0.00019726,2]
[330126602,1719029502494,-594.44,0.00019726,2]
[330126603,1719029502504,-589.5,0.00019726,2]
[330126604,1719029502514,-500.0,0.00019726,2]
[330126605,1719029502524,-1358.32,0.00019726,2]
[330126606,1719029502534,-500.0,0.00019726,2]
[330126607,1719029502544,-500.0,0.00019726,2]
[330126608,1719029502554,-1048.62,0.00019726,2]
[330126609,1719029502564,-500.0,0.00019726,2]
[330126610,1719029502575,-1166.68,0.00019726,2]
[330126611,1719029502586,-500.0,0.00019726,2]
[330126612,1719029502595,-500.0,0.00019726,2]
[330126613,1719029502605,-897.42,0.00019726,2]
[330126614,1719029502615,-500.0,0.00019726,2]
[330126615,1719029502626,-500.0,0.00019726,2]
[330126616,1719029502636,-500.0,0.00019726,2]
[330126617,1719029502646,-984.09,0.00019726,2]
[330126618,1719029502657,-1095.86,0.00019726,2]
[330126619,1719029502666,-976.96,0.00019726,2]
[330126620,1719029502677,-576.47,0.00019726,2]
[330126621,1719029502686,-500.0,0.00019726,2]
[330126622,1719029502696,-500.0,0.00019726,2]
[330126623,1719029502706,-549.43,0.00019726,2]
[330126624,1719029502716,-500.0,0.00019726,2]
[330126625,1719029502726,-500.0,0.00019726,2]
[330126626,1719029502735,-506.66,0.00019726,2]
[330126627,1719029502745,-500.0,0.00019726,2]
[330126628,1719029502755,-377.38362844,0.00019726,2]
[330126629,1719029502765,-1593.57,0.00019726,2]
[330126630,1719029502775,-500.0,0.00019726,2]
[330126631,1719029502785,-572.34,0.00019726,2]
[330126632,1719029502795,-543.18,0.00019726,2]
[330126633,1719029502805,-500.0,0.00019726,2]
[330126634,1719029502815,-964.7,0.00019726,2]
[330126635,1719029502825,-927.89,0.00019726,2]
[330126636,1719029502835,-983.34,0.00019726,2]
[330126637,1719029502845,-500.0,0.00019726,2]
[330126638,1719029502855,-663.06,0.00019726,2]
[330126639,1719029502865,-500.0,0.00019726,2]
[330126640,1719029502875,-500.0,0.00019726,2]
[330126641,1719029502885,-500.0,0.00019726,2]
[330126642,1719029502899,-500.0,0.00019726,2]
[330126643,1719029502909,-500.0,0.00019726,2]
[330126644,1719029502919,-502.64944503,0.00019726,2]
[330126645,1719029502929,-500.0,0.00019726,2]
[330126646,1719029502941,-500.0,0.00019726,2]
[330126647,1719029502951,-500.0,0.00019726,2]
[330126648,1719029502961,-2005.06,0.00019726,2]
[330126649,1719029502974,-565.67773605,0.00019726,2]
[330126650,1719029502984,-509.58415853,0.00019726,2]
[330126651,1719029502994,-500.0,0.00019726,2]
[330126652,1719029503004,-732.53,0.00019726,2]
[330126653,1719029503014,-500.0,0.00019726,2]
[330126654,1719029503024,-500.0,0.00019726,2]
[330126655,1719029503034,-2323.13,0.00019726,2]
[330126656,1719029503044,-500.0,0.00019726,2]
[330126657,1719029503054,-711.61,0.00019726,2]
[330126658,1719029503064,-500.0,0.00019726,2]
[330126659,1719029503075,-500.0,0.00019726,2]
[330126660,1719029503084,-500.0,0.00019726,2]
[330126661,1719029503094,-500.0,0.00019726,2]
[330126662,1719029503104,-500.0,0.00019726,2]
[330126663,1719029503113,-500.0,0.00019726,2]
[330126664,1719029503123,-500.0,0.00019726,2]
[330126665,1719029503134,-507.34234918,0.00019726,2]
[330126666,1719029503144,-500.0,0.00019726,2]
[330126667,1719029503154,-500.0,0.00019726,2]
[330126668,1719029503163,-500.0,0.00019726,2]
[330126669,1719029503174,-500.0,0.00019726,2]
[330126670,1719029503183,-500.0,0.00019726,2]
[330126671,1719029503412,-500.0,0.00019726,2]
[330126672,1719029503422,-500.0,0.00019726,2]
[330126673,1719029503431,-500.0,0.00019726,2]
[330126674,1719029503442,-769.46,0.00019726,2]
[330126675,1719029503452,-1100.8,0.00019726,2]
[330126676,1719029503462,-500.0,0.00019726,2]
[330126677,1719029503471,-500.0,0.00019726,2]
[330126678,1719029503481,-500.0,0.00019726,2]
[330126679,1719029503491,-1071.21,0.00019726,2]
[330126680,1719029503500,-639.1,0.00019726,2]
[330126681,1719029503509,-1581.61,0.00019726,2]
[330126682,1719029503519,-1283.29,0.00019726,2]
[330126683,1719029503528,-500.0,0.00019726,2]
[330126684,1719029503537,-500.0,0.00019726,2]
[330126685,1719029503547,-500.0,0.00019726,2]
[330126686,1719029503556,-576.48,0.00019726,2]
[330126687,1719029503565,-694.04,0.00019726,2]
[330126688,1719029503576,-500.0,0.00019726,2]
[330126689,1719029503585,-500.0,0.00019726,2]
[330126690,1719029503596,-456.55,0.00019726,2]
[330126691,1719029503605,-500.0,0.00019726,2]
[330126692,1719029503615,-1306.12,0.00019726,2]
[330126693,1719029503624,-633.59,0.00019726,2]
[330126694,1719029503633,-500.0,0.00019726,2]
[330126695,1719029503643,-1540.76,0.00019726,2]
[330126696,1719029503653,-500.0,0.00019726,2]
[330126697,1719029503663,-603.21,0.00019726,2]
[330126698,1719029503672,-542.3,0.00019726,2]
[330126699,1719029503681,-500.0,0.00019726,2]
[330126700,1719029503690,-604.48,0.00019726,2]
[330126701,1719029503700,-500.0,0.00019726,2]
[330126702,1719029503709,-500.0,0.00019726,2]
[330126703,1719029503719,-768.62,0.00019726,2]
[330126704,1719029503728,-500.0,0.00019726,2]
[330126705,1719029503738,-500.0,0.00019726,2]
[330126706,1719029503747,-500.0,0.00019726,2]
[330126707,1719029503756,-847.62,0.00019726,2]
[330126708,1719029503766,-500.0,0.00019726,2]
[330126709,1719029503775,-500.0,0.00019726,2]
[330126710,1719029503784,-899.71,0.00019726,2]
[330126711,1719029503793,-500.0,0.00019726,2]
[330126712,1719029503803,-4475.95,0.00019726,2]
[330126713,1719029503813,-500.0,0.00019726,2]
[330126714,1719029503822,-1291.76,0.00019726,2]
[330126715,1719029503833,-500.0,0.00019726,2]
[330126716,1719029503842,-1483.4,0.00019726,2]
[330126717,1719029503851,-500.0,0.00019726,2]
[330126718,1719029503864,-500.0,0.00019726,2]
[330126719,1719029503873,-656.4,0.00019726,2]
[330126720,1719029503883,-500.0,0.00019726,2]
[330126721,1719029503896,-500.0,0.00019726,2]
[330126722,1719029503905,-500.0,0.00019726,2]
[330126723,1719029503915,-500.0,0.00019726,2]
[330126724,1719029503924,-500.0,0.00019726,2]
[330126725,1719029503934,-662.61,0.00019726,2]
[330126726,1719029503943,-1466.37,0.00019726,2]
[330126727,1719029503952,-2252.05,0.00019726,2]
[330126728,1719029503961,-500.0,0.00019726,2]
[330126729,1719029503972,-500.0,0.00019726,2]
[330126730,1719029503982,-500.0,0.00019726,2]
[330126731,1719029503992,-500.0,0.00019726,2]
[330126732,1719029504002,-500.0,0.00019726,2]
[330126733,1719029504011,-881.5,0.00019726,2]
[330126734,1719029504020,-500.0,0.00019726,2]
[330126735,1719029504030,-500.0,0.00019726,2]
[330126736,1719029504039,-500.0,0.00019726,2]
[330126737,1719029504049,-500.0,0.00019726,2]
[330126738,1719029504058,-824.95,0.00019726,2]
[330126739,1719029504068,-3892.04,0.00019726,2]
[330126740,1719029504079,-575.91,0.00019726,2]
[330126741,1719029504088,-500.0,0.00019726,2]
[330126742,1719029504097,-500.0,0.00019726,2]
[330126743,1719029504106,-500.0,0.00019726,2]
[330126744,1719029504115,-353.96222878,0.00019726,2]
[330126745,1719029504124,-500.0,0.00019726,2]
[330126746,1719029504133,-1012.75,0.00019726,2]
[330126747,1719029504142,-500.0,0.00019726,2]
[330126748,1719029504151,-500.0,0.00019726,2]
[330126749,1719029504160,-500.0,0.00019726,2]
[330126750,1719029504170,-500.0,0.00019726,2]
[330126751,1719029504179,-500.0,0.00019726,2]
[330126752,1719029504189,-2400.45,0.00019726,2]
[330126753,1719029504198,-2410.38,0.00019726,2]
[330126754,1719029504207,-500.0,0.00019726,2]
[330126755,1719029504216,-1069.81,0.00019726,2]
[330126756,1719029504226,-1780.59,0.00019726,2]
[330126757,1719029504235,-500.0,0.00019726,2]
[330126758,1719029504244,-3037.67,0.00019726,2]
[330126759,1719029504254,-500.0,0.00019726,2]
[330126760,1719029504263,-500.0,0.00019726,2]
[330126761,1719029504273,-500.0,0.00019726,2]
[330126762,1719029504282,-500.0,0.00019726,2]
[330126763,1719029504292,-500.0,0.00019726,2]
[330126764,1719029504301,-500.0,0.00019726,2]
[330126765,1719029504310,-3226.73,0.00019726,2]
[330126766,1719029504319,-500.0,0.00019726,2]
[330126767,1719029504333,-500.0,0.00019726,2]
[330126768,1719029504343,-500.0,0.00019726,2]
[330126769,1719029504352,-500.0,0.00019726,2]
[330126770,1719029504363,-500.0,0.00019726,2]
[330126771,1719029504372,-2000.0,0.00019726,2]
[330126772,1719029504381,-500.0,0.00019726,2]
[330126773,1719029504391,-1605.63,0.00019726,2]
[330126774,1719029504400,-7264.75,0.00019726,2]
[330126775,1719029504410,-500.0,0.00019726,2]
[330126776,1719029504420,-500.0,0.00019726,2]
[330126777,1719029504430,-500.0,0.00019726,2]
[330126778,1719029504441,-500.0,0.00019726,2]
[330126779,1719029504451,-1242.69,0.00019726,2]
[330126780,1719029504462,-500.0,0.00019726,2]
[330126781,1719029504472,-926.72,0.00019726,2]
[330126782,1719029504482,-566.19,0.00019726,2]
[330126783,1719029504492,-3081.46,0.00019726,2]
[330126784,1719029504502,-500.0,0.00019726,2]
[330126785,1719029504512,-500.0,0.00019726,2]
[330126786,1719029504523,-653.89,0.00019726,2]
[330126787,1719029504533,-500.0,0.00019726,2]
[330126788,1719029504542,-500.0,0.00019726,2]
[330126789,1719029504553,-714.2,0.00019726,2]
[330126790,1719029504562,-8833.17,0.00019726,2]
[330126791,1719029504572,-1060.68,0.00019726,2]
[330126792,1719029504582,-680.38,0.00019726,2]
[330126793,1719029504592,-500.0,0.00019726,2]
[330126794,1719029504602,-3271.44,0.00019726,2]
[330126795,1719029504612,-500.0,0.00019726,2]
[330126796,1719029504621,-6179.79,0.00019726,2]
[330126797,1719029504630,-255.26150764,0.00019726,2]
[330126798,1719029504640,-500.0,0.00019726,2]
[330126799,1719029504650,-1330.36,0.00019726,2]
[330126800,1719029504661,-2906.59,0.00019726,2]
[330126801,1719029504672,-500.0,0.00019726,2]
[330126802,1719029504681,-1111.21,0.00019726,2]
[330126803,1719029504694,-500.0,0.00019726,2]
[330126804,1719029504704,-500.0,0.00019726,2]
[330126805,1719029504713,-8174.46,0.00019726,2]
[330126806,1719029504723,-500.0,0.00019726,2]
[330126807,1719029504733,-500.0,0.00019726,2]
[330126808,1719029504744,-500.0,0.00019726,2]
[330126809,1719029504754,-500.0,0.00019726,2]
[330126810,1719029504764,-500.0,0.00019726,2]
[330126811,1719029504775,-500.0,0.00019726,2]
[330126812,1719029504785,-582.55,0.00019726,2]
[330126813,1719029504795,-500.0,0.00019726,2]
[330126814,1719029504806,-500.0,0.00019726,2]
[330126815,1719029504816,-500.0,0.00019726,2]
[330126816,1719029504827,-2344.82,0.00019726,2]
[330126817,1719029504836,-500.0,0.00019726,2]
[330126818,1719029504846,-500.0,0.00019726,2]
[330126819,1719029504856,-1547.0,0.00019726,2]
[330126820,1719029504867,-967.14,0.00019726,2]
[330126821,1719029504877,-500.0,0.00019726,2]
[330126822,1719029504889,-2631.33,0.00019726,2]
[330126823,1719029504903,-500.0,0.00019726,2]
[330126824,1719029504914,-500.0,0.00019726,2]
[330126825,1719029504924,-45117.28,0.00019726,2]
[330126826,1719029504934,-5049.91,0.00019726,2]
[330126827,1719029504944,-500.0,0.00019726,2]
[330126828,1719029504954,-571.63,0.00019726,2]
[330126829,1719029504965,-500.0,0.00019726,2]
[330126830,1719029504975,-500.0,0.00019726,2]
[330126831,1719029504985,-500.0,0.00019726,2]
[330126832,1719029504995,-3013.17,0.00019726,2]
[330126833,1719029505006,-552.92,0.00019726,2]
[330126834,1719029505015,-1252.07,0.00019726,2]
[330126835,1719029505025,-500.0,0.00019726,2]
[330126836,1719029505035,-500.0,0.00019726,2]
[330126837,1719029505045,-794.91,0.00019726,2]
[330126838,1719029505054,-500.0,0.00019726,2]
[330126839,1719029505066,-500.0,0.00019726,2]
[330126840,1719029505076,-557.36,0.00019726,2]
[330126841,1719029505086,-500.0,0.00019726,2]
[330126842,1719029505095,-500.0,0.00019726,2]
[330126843,1719029505105,-1065.32,0.00019726,2]
[330126844,1719029505115,-4132.74,0.00019726,2]
[330126845,1719029505124,-500.0,0.00019726,2]
[330126846,1719029505134,-4771.24,0.00019726,2]
[330126847,1719029505143,-500.0,0.00019726,2]
[330126848,1719029505153,-701.82,0.00019726,2]
[330126849,1719029505163,-500.0,0.00019726,2]
[330126850,1719029505174,-500.0,0.00019726,2]
[330126851,1719029505186,-500.0,0.00019726,2]
[330126852,1719029505196,-648.44,0.00019726,2]
[330126853,1719029505205,-532.81522667,0.00019726,2]
[330126854,1719029505214,-1639.59,0.00019726,2]
[330126855,1719029505224,-500.0,0.00019726,2]
[330126856,1719029505234,-500.0,0.00019726,2]
[330126857,1719029505244,-500.0,0.00019726,2]
[330126858,1719029505254,-639.43,0.00019726,2]
[330126859,1719029505262,-500.0,0.00019726,2]
[330126860,1719029505271,-500.0,0.00019726,2]
[330126861,1719029505280,-973.5,0.00019726,2]
[330126862,1719029505289,-500.0,0.00019726,2]
[330126863,1719029505298,-500.0,0.00019726,2]
[330126864,1719029505307,-500.0,0.00019726,2]
[330126865,1719029505315,-500.0,0.00019726,2]
[330126866,1719029505324,-500.0,0.00019726,2]
[330126867,1719029505335,-500.0,0.00019726,2]
[330126868,1719029505344,-1438.59,0.00019726,2]
[330126869,1719029505353,-1728.72,0.00019726,2]
[330126870,1719029505362,-11144.02,0.00019726,2]
[330126871,1719029505370,-500.0,0.00019726,2]
[330126872,1719029505379,-1836.13,0.00019726,2]
[330126873,1719029505388,-807.92,0.00019726,2]
[330126874,1719029505397,-500.0,0.00019726,2]
[330126875,1719029505406,-500.0,0.00019726,2]
[330126876,1719029505414,-42950.1,0.00019726,2]
[330126877,1719029505423,-527.67,0.00019726,2]
[330126878,1719029505432,-579.07,0.00019726,2]
[330126879,1719029505441,-500.0,0.00019726,2]
[330126880,1719029505451,-500.0,0.00019726,2]
[330126881,1719029505460,-500.0,0.00019726,2]
[330126882,1719029505470,-500.0,0.00019726,2]
[330126883,1719029505479,-500.0,0.00019726,2]
[330126884,1719029505488,-10000.05,0.00019726,2]
[330126885,1719029505497,-539.65,0.00019726,2]
[330126886,1719029505507,-777.59,0.00019726,2]
[330126887,1719029505516,-6022.88,0.00019726,2]
[330126888,1719029505525,-3582.0,0.00019726,2]
[330126889,1719029505534,-652.28,0.00019726,2]
[330126890,1719029505543,-500.0,0.00019726,2]
[330126891,1719029505552,-500.0,0.00019726,2]
[330126892,1719029505561,-1313.14,0.00019726,2]
[330126893,1719029505571,-1021.62,0.00019726,2]
[330126894,1719029505580,-2072.64,0.00019726,2]
[330126895,1719029505589,-1526.34,0.00019726,2]
[330126896,1719029505598,-500.0,0.00019726,2]
[330126897,1719029505607,-500.0,0.00019726,2]
[330126898,1719029505616,-500.0,0.00019726,2]
[330126899,1719029505626,-666.33,0.00019726,2]
[330126900,1719029505635,-1091.74,0.00019726,2]
[330126901,1719029505644,-500.0,0.00019726,2]
[330126902,1719029505654,-580.61,0.00019726,2]
[330126903,1719029505663,-500.0,0.00019726,2]
[330126904,1719029505672,-500.0,0.00019726,2]
[330126905,1719029505681,-1356.47,0.00019726,2]
[330126906,1719029505690,-1810.43,0.00019726,2]
[330126907,1719029505699,-500.0,0.00019726,2]
[330126908,1719029505708,-1514.57,0.00019726,2]
[330126909,1719029505717,-1003.26,0.00019726,2]
[330126910,1719029505726,-3027.04,0.00019726,2]
[330126911,1719029505735,-1047.72,0.00019726,2]
[330126912,1719029505744,-5223.38,0.00019726,2]
[330126913,1719029505753,-613.80888384,0.00019726,2]
[330126914,1719029505762,-500.0,0.00019726,2]
[330126915,1719029505771,-948.94,0.00019726,2]
[330126916,1719029505780,-500.0,0.00019726,2]
[330126917,1719029505789,-500.0,0.00019726,2]
[330126918,1719029505799,-542.14,0.00019726,2]
[330126919,1719029505808,-775.43,0.00019726,2]
[330126920,1719029505817,-500.0,0.00019726,2]
[330126921,1719029505827,-500.0,0.00019726,2]
[330126922,1719029505836,-243.68,0.00019726,2]
[330126923,1719029505845,-500.0,0.00019726,2]
[330126924,1719029505854,-2452.36,0.00019726,2]
[330126925,1719029505863,-500.0,0.00019726,2]
[330126926,1719029505872,-500.0,0.00019726,2]
[330126927,1719029505881,-538.38,0.00019726,2]
[330126928,1719029505893,-2229.47,0.00019726,2]
[330126929,1719029505902,-501.51682542,0.00019726,2]
[330126930,1719029505911,-500.0,0.00019726,2]
[330126931,1719029505920,-2772.69,0.00019726,2]
[330126932,1719029505930,-546.0498773,0.00019726,2]
[330126933,1719029505940,-573.8,0.00019726,2]
[330126934,1719029505949,-743.01,0.00019726,2]
[330126935,1719029505958,-500.0,0.00019726,2]
[330126936,1719029505967,-500.0,0.00019726,2]
[330126937,1719029505979,-500.0,0.00019726,2]
[330126938,1719029505989,-651.86,0.00019726,2]
[330126939,1719029505998,-3047.53,0.00019726,2]
[330126940,1719029506007,-504.23,0.00019726,2]
[330126941,1719029506017,-500.0,0.00019726,2]
[330126942,1719029506026,-1067.28,0.00019726,2]
[330126943,1719029506035,-500.0,0.00019726,2]
[330126944,1719029506044,-500.0,0.00019726,2]
[330126945,1719029506053,-500.0,0.00019726,2]
[330126946,1719029506062,-421.51097108,0.00019726,2]
[330126947,1719029506071,-500.31,0.00019726,2]
[330126948,1719029506080,-500.0,0.00019726,2]
[330126949,1719029506090,-4313.25,0.00019726,2]
[330126950,1719029506100,-833.81,0.00019726,2]
[330126951,1719029506109,-500.0,0.00019726,2]
[330126952,1719029506118,-500.0,0.00019726,2]
[330126953,1719029506127,-769.69,0.00019726,2]
[330126954,1719029506137,-3200.7,0.00019726,2]
[330126955,1719029506147,-7011.9,0.00019726,2]
[330126956,1719029506156,-500.0,0.00019726,2]
[330126957,1719029506166,-500.0,0.00019726,2]
[330126958,1719029506175,-16090.35,0.00019726,2]
[330126959,1719029506185,-500.0,0.00019726,2]
[330126960,1719029506196,-500.0,0.00019726,2]
[330126961,1719029506206,-500.0,0.00019726,2]
[330126962,1719029506217,-500.0,0.00019726,2]
[330126963,1719029506226,-500.0,0.00019726,2]
[330126964,1719029506235,-1364.1,0.00019726,2]
[330126965,1719029506246,-500.0,0.00019726,2]
[330126966,1719029506256,-646.35,0.00019726,2]
[330126967,1719029506267,-14109.18,0.00019726,2]
[330126968,1719029506278,-500.0,0.00019726,2]
[330126969,1719029506288,-7200.3,0.00019726,2]
[330126970,1719029506298,-6512.45,0.00019726,2]
[330126971,1719029506309,-500.0,0.00019726,2]
[330126972,1719029506319,-5584.86,0.00019726,2]
[330126973,1719029506329,-1960.22,0.00019726,2]
[330126974,1719029506337,-699.9,0.00019726,2]
[330126975,1719029506347,-500.0,0.00019726,2]
[330126976,1719029506356,-2796.37,0.00019726,2]
[330126977,1719029506365,-500.0,0.00019726,2]
[330126978,1719029506374,-500.0,0.00019726,2]
[330126979,1719029506383,-500.0,0.00019726,2]
[330126980,1719029506392,-597.61,0.00019726,2]
[330126981,1719029506401,-500.0,0.00019726,2]
[330126982,1719029506410,-500.0,0.00019726,2]
[330126983,1719029506419,-500.0,0.00019726,2]
[330126984,1719029506429,-519.9,0.00019726,2]
[330126985,1719029506438,-500.0,0.00019726,2]
[330126986,1719029506447,-544.7,0.00019726,2]
[330126987,1719029506457,-3860.84,0.00019726,2]
[330126988,1719029506467,-500.0,0.00019726,2]
[330126989,1719029506477,-1622.18,0.00019726,2]
[330126990,1719029506486,-500.0,0.00019726,2]
[330126991,1719029506495,-500.0,0.00019726,2]
[330126992,1719029506504,-500.0,0.00019726,2]
[330126993,1719029506513,-1307.09,0.00019726,2]
[330126994,1719029506522,-975.65,0.00019726,2]
[330126995,1719029506531,-500.0,0.00019726,2]
[330126996,1719029506541,-752.39,0.00019726,2]
[330126997,1719029506550,-1117.33,0.00019726,2]
[330126998,1719029506559,-514.5,0.00019726,2]
[330126999,1719029506568,-500.0,0.00019726,2]
[330127000,1719029506578,-500.0,0.00019726,2]
[330127001,1719029506588,-500.0,0.00019726,2]
[330127002,1719029506596,-500.0,0.00019726,2]
[330127003,1719029506606,-562.83,0.00019726,2]
[330127004,1719029506615,-500.0,0.00019726,2]
[330127005,1719029506624,-500.0,0.00019726,2]
[330127006,1719029506633,-2029.47,0.00019726,2]
[330127007,1719029506643,-739.7,0.00019726,2]
[330127008,1719029506652,-500.0,0.00019726,2]
[330127009,1719029506661,-977.24,0.00019726,2]
[330127010,1719029506671,-1221.74,0.00019726,2]
[330127011,1719029506680,-500.0,0.00019726,2]
[330127012,1719029506689,-500.0,0.00019726,2]
[330127013,1719029506698,-500.0,0.00019726,2]
[330127014,1719029506707,-500.0,0.00019726,2]
[330127015,1719029506716,-855.03,0.00019726,2]
[330127016,1719029506725,-500.0,0.00019726,2]
[330127017,1719029506734,-2316.0,0.00019726,2]
[330127018,1719029506743,-500.0,0.00019726,2]
[330127019,1719029506752,-6344.73,0.00019726,2]
[330127020,1719029506761,-500.0,0.00019726,2]
[330127021,1719029506770,-500.0,0.00019726,2]
[330127022,1719029506779,-500.0,0.00019726,2]
[330127023,1719029506789,-500.0,0.00019726,2]
[330127024,1719029506799,-500.0,0.00019726,2]
[330127025,1719029506808,-500.0,0.00019726,2]
[330127026,1719029507030,-623.37,0.00019726,2]
[330127027,1719029507040,-2308.34,0.00019726,2]
[330127028,1719029507049,-2090.46,0.00019726,2]
[330127029,1719029507059,-688.05,0.00019726,2]
[330127030,1719029507069,-596.22,0.00019726,2]
[330127031,1719029507078,-500.0,0.00019726,2]
[330127032,1719029507087,-944.79,0.00019726,2]
[330127033,1719029507097,-500.0,0.00019726,2]
[330127034,1719029507106,-500.0,0.00019726,2]
[330127035,1719029507116,-7152.31,0.00019726,2]
[330127036,1719029507125,-500.0,0.00019726,2]
[330127037,1719029507135,-665.12,0.00019726,2]
[330127038,1719029507145,-500.0,0.00019726,2]
[330127039,1719029507155,-955.17,0.00019726,2]
[330127040,1719029507164,-500.0,0.00019726,2]
[330127041,1719029507174,-30017.57,0.00019726,2]
[330127042,1719029507184,-8494.36,0.00019726,2]
[330127043,1719029507193,-500.0,0.00019726,2]
[330127044,1719029507203,-1102.94,0.00019726,2]
[330127045,1719029507212,-574.34,0.00019726,2]
[330127046,1719029507222,-510.24613456,0.00019726,2]
[330127047,1719029507231,-500.0,0.00019726,2]
[330127048,1719029507241,-573.08,0.00019726,2]
[330127049,1719029507251,-1893.07,0.00019726,2]
[330127050,1719029507260,-503.45,0.00019726,2]
[330127051,1719029507269,-5140.11,0.00019726,2]
[330127052,1719029507279,-500.0,0.00019726,2]
[330127053,1719029507288,-584.96,0.00019726,2]
[330127054,1719029507299,-500.0,0.00019726,2]
[330127055,1719029507310,-500.0,0.00019726,2]
[330127056,1719029507322,-1046.27,0.00019726,2]
[330127057,1719029507332,-500.0,0.00019726,2]
[330127058,1719029507342,-500.0,0.00019726,2]
[330127059,1719029507352,-500.0,0.00019726,2]
[330127060,1719029507362,-843.24,0.00019726,2]
[330127061,1719029507372,-509.3366351,0.00019726,2]
[330127062,1719029507381,-500.0,0.00019726,2]
[330127063,1719029507391,-676.7,0.00019726,2]
[330127064,1719029507401,-583.73,0.00019726,2]
[330127065,1719029507410,-1220.48,0.00019726,2]
[330127066,1719029507419,-2257.37,0.00019726,2]
[330127067,1719029507429,-500.0,0.00019726,2]
[330127068,1719029507439,-500.0,0.00019726,2]
[330127069,1719029507448,-500.0,0.00019726,2]
[330127070,1719029507458,-500.0,0.00019726,2]
[330127071,1719029507467,-500.0,0.00019726,2]
[330127072,1719029507477,-4933.08,0.00019726,2]
[330127073,1719029507486,-500.0,0.00019726,2]
[330127074,1719029507495,-152.24,0.00019726,2]
[330127075,1719029507505,-500.0,0.00019726,2]
[330127076,1719029507514,-2452.47,0.00019726,2]
[330127077,1719029507524,-2374.57,0.00019726,2]
[330127078,1719029507534,-508.29277535,0.00019726,2]
[330127079,1719029507543,-500.0,0.00019726,2]
[330127080,1719029507553,-914.01,0.00019726,2]
[330127081,1719029507562,-522.12,0.00019726,2]
[330127082,1719029507571,-500.0,0.00019726,2]
[330127083,1719029507581,-500.0,0.00019726,2]
[330127084,1719029507590,-500.0,0.00019726,2]